[Event "Late-Titled-Tuesday-Blitz-December-26-2023"]
[Site "Chess.com"]
[Date "2023.12.26"]
[Round "7"]
[White "HajiyevKanan"]
[Black "vladoboch"]
[Result "0-1"]
[WhiteElo "2626"]
[BlackElo "2441"]
[TimeControl "180+1"]
[EndTime "15:16:50 PST"]
[Termination "vladoboch won by resignation"]

1. d4 {[%clk 0:02:58.8]} 1... Nf6 {[%clk 0:02:59.6]} 2. Nf3 {[%clk 0:02:59.6]}
2... g6 {[%clk 0:03:00]} 3. c4 {[%clk 0:02:59.9]} 3... Bg7 {[%clk 0:03:00.2]} 4.
g3 {[%clk 0:03:00.7]} 4... O-O {[%clk 0:03:00.1]} 5. Bg2 {[%clk 0:03:01.6]} 5...
d6 {[%clk 0:03:00.7]} 6. O-O {[%clk 0:03:02.3]} 6... Nc6 {[%clk 0:03:00.9]} 7.
b3 {[%clk 0:03:02.2]} 7... e5 {[%clk 0:02:59.6]} 8. dxe5 {[%clk 0:03:02.7]} 8...
dxe5 {[%clk 0:02:59.3]} 9. Bb2 {[%clk 0:03:03.3]} 9... e4 {[%clk 0:02:40.8]} 10.
Ne5 {[%clk 0:03:01.6]} 10... Qxd1 {[%clk 0:02:31.8]} 11. Rxd1 {[%clk 0:03:01.1]}
11... Ng4 {[%clk 0:02:27.3]} 12. Nxc6 {[%clk 0:02:45.6]} 12... Bxb2 {[%clk
0:02:25.1]} 13. Ne7+ {[%clk 0:02:46]} 13... Kg7 {[%clk 0:02:23.6]} 14. Nd2
{[%clk 0:02:42]} 14... Bxa1 {[%clk 0:02:23.2]} 15. Rxa1 {[%clk 0:02:42.8]} 15...
f5 {[%clk 0:01:49.7]} 16. Nd5 {[%clk 0:02:10.2]} 16... c6 {[%clk 0:01:44.7]} 17.
Nc3 {[%clk 0:02:02.7]} 17... Rd8 {[%clk 0:01:40.6]} 18. Nf1 {[%clk 0:02:02.5]}
18... Be6 {[%clk 0:01:38.1]} 19. h3 {[%clk 0:01:53.2]} 19... Ne5 {[%clk
0:01:33.3]} 20. Rc1 {[%clk 0:01:52.6]} 20... Rac8 {[%clk 0:01:22.8]} 21. Na4
{[%clk 0:01:44.6]} 21... b6 {[%clk 0:01:20.2]} 22. Nc3 {[%clk 0:01:41]} 22... b5
{[%clk 0:01:18.5]} 23. c5 {[%clk 0:01:39]} 23... a5 {[%clk 0:01:15]} 24. Nb1
{[%clk 0:01:31]} 24... Ra8 {[%clk 0:01:09.9]} 25. Ne3 {[%clk 0:01:30.9]} 25...
a4 {[%clk 0:01:09.4]} 26. bxa4 {[%clk 0:01:25.7]} 26... Rxa4 {[%clk 0:01:09]}
27. a3 {[%clk 0:01:25.9]} 27... Nc4 {[%clk 0:01:04.2]} 28. Nc2 {[%clk 0:01:24]}
28... Nb2 {[%clk 0:00:57.8]} 29. Nb4 {[%clk 0:01:21.3]} 29... Rd1+ {[%clk
0:00:49.1]} 30. Rxd1 {[%clk 0:01:21.1]} 30... Nxd1 {[%clk 0:00:50]} 31. Nxc6
{[%clk 0:01:19.9]} 31... Rc4 {[%clk 0:00:48.4]} 32. Nd8 {[%clk 0:01:14.6]} 32...
Bd5 {[%clk 0:00:38.6]} 33. c6 {[%clk 0:01:10]} 33... Rc1 {[%clk 0:00:33.5]} 34.
Nd2 {[%clk 0:01:09.2]} 34... Ne3+ {[%clk 0:00:32.9]} 35. Kh2 {[%clk 0:01:09]}
35... Nxg2 {[%clk 0:00:32.7]} 36. e3 {[%clk 0:00:55.3]} 36... Ne1 {[%clk
0:00:27.3]} 37. g4 {[%clk 0:00:54.7]} 37... Bxc6 {[%clk 0:00:24.1]} 38. Ne6+
{[%clk 0:00:53.6]} 38... Kf6 {[%clk 0:00:23.2]} 39. Nd4 {[%clk 0:00:53.6]} 39...
Bd7 {[%clk 0:00:21.6]} 40. Kg3 {[%clk 0:00:51.6]} 40... fxg4 {[%clk 0:00:17.7]}
41. Nxe4+ {[%clk 0:00:51.8]} 41... Kg7 {[%clk 0:00:16.1]} 42. hxg4 {[%clk
0:00:51.7]} 42... Nd3 {[%clk 0:00:15.7]} 43. g5 {[%clk 0:00:45.6]} 43... Rg1+
{[%clk 0:00:16]} 44. Kh2 {[%clk 0:00:42.6]} 44... Ra1 {[%clk 0:00:15.5]} 45. Nc5
{[%clk 0:00:41.5]} 45... Nxc5 {[%clk 0:00:15.2]} 0-1

[Event "Late-Titled-Tuesday-Blitz-December-26-2023"]
[Site "Chess.com"]
[Date "2023.12.26"]
[Round "7"]
[White "Abduzhaparov"]
[Black "mariofs"]
[Result "1-0"]
[WhiteElo "2394"]
[BlackElo "2192"]
[TimeControl "180+1"]
[EndTime "15:16:51 PST"]
[Termination "Abduzhaparov won on time"]

1. d4 {[%clk 0:03:00.9]} 1... d5 {[%clk 0:02:59.7]} 2. e4 {[%clk 0:03:01.2]}
2... dxe4 {[%clk 0:02:59]} 3. Nc3 {[%clk 0:03:01.7]} 3... Nf6 {[%clk 0:02:57.6]}
4. f3 {[%clk 0:03:02.2]} 4... exf3 {[%clk 0:02:52.6]} 5. Nxf3 {[%clk 0:03:03.1]}
5... c6 {[%clk 0:02:49.1]} 6. Bd3 {[%clk 0:03:00.2]} 6... g6 {[%clk 0:02:49.1]}
7. O-O {[%clk 0:02:58.3]} 7... Bg7 {[%clk 0:02:49.2]} 8. Kh1 {[%clk 0:02:56.1]}
8... O-O {[%clk 0:02:49.1]} 9. Qe1 {[%clk 0:02:54.2]} 9... Nbd7 {[%clk
0:02:46.8]} 10. Qh4 {[%clk 0:02:53.8]} 10... Re8 {[%clk 0:02:35.9]} 11. Ng5
{[%clk 0:02:52]} 11... h5 {[%clk 0:02:25.6]} 12. Nce4 {[%clk 0:02:38.9]} 12...
Nf8 {[%clk 0:02:03.5]} 13. Nxf7 {[%clk 0:02:36.4]} 13... Kxf7 {[%clk 0:01:54.6]}
14. Bc4+ {[%clk 0:02:18.7]} 14... e6 {[%clk 0:01:29]} 15. Bg5 {[%clk 0:02:17.6]}
15... Nh7 {[%clk 0:01:13.1]} 16. Nxf6 {[%clk 0:01:57.8]} 16... Bxf6 {[%clk
0:00:58.9]} 17. Rxf6+ {[%clk 0:01:51.2]} 17... Nxf6 {[%clk 0:00:53.3]} 18. Rf1
{[%clk 0:01:51.4]} 18... Kg8 {[%clk 0:00:19.9]} 19. Bxf6 {[%clk 0:01:51]} 19...
Qd7 {[%clk 0:00:16.5]} 20. Be5 {[%clk 0:01:38.8]} 20... Rf8 {[%clk 0:00:12.8]}
21. Rxf8+ {[%clk 0:01:30.5]} 21... Kxf8 {[%clk 0:00:12.7]} 22. Qf6+ {[%clk
0:01:18.4]} 22... Qf7 {[%clk 0:00:11.7]} 23. Qd8+ {[%clk 0:01:12.3]} 23... Qe8
{[%clk 0:00:09.2]} 24. Qc7 {[%clk 0:01:07.2]} 24... Qf7 {[%clk 0:00:07.9]} 25.
Qd8+ {[%clk 0:00:56.4]} 25... Qe8 {[%clk 0:00:08]} 26. Qg5 {[%clk 0:00:46]}
26... Qf7 {[%clk 0:00:06]} 27. h3 {[%clk 0:00:21.5]} 27... Bd7 {[%clk 0:00:06]}
28. Qh6+ {[%clk 0:00:19.6]} 28... Ke7 {[%clk 0:00:05.6]} 29. Qg5+ {[%clk
0:00:18]} 29... Ke8 {[%clk 0:00:05.4]} 30. Bd6 {[%clk 0:00:16.8]} 1-0

[Event "Late-Titled-Tuesday-Blitz-December-26-2023"]
[Site "Chess.com"]
[Date "2023.12.26"]
[Round "7"]
[White "laskakid"]
[Black "PushingpawnsNYC"]
[Result "1-0"]
[WhiteElo "2368"]
[BlackElo "2471"]
[TimeControl "180+1"]
[EndTime "15:16:54 PST"]
[Termination "laskakid won on time"]

1. d4 {[%clk 0:03:00.9]} 1... d5 {[%clk 0:02:56.5]} 2. c4 {[%clk 0:03:00.9]}
2... e6 {[%clk 0:02:56.3]} 3. Nc3 {[%clk 0:03:00.6]} 3... Nf6 {[%clk 0:02:56.2]}
4. cxd5 {[%clk 0:03:00.8]} 4... exd5 {[%clk 0:02:55.5]} 5. Bg5 {[%clk
0:03:00.9]} 5... c6 {[%clk 0:02:55.5]} 6. e3 {[%clk 0:03:00.9]} 6... Be7 {[%clk
0:02:55.4]} 7. Bd3 {[%clk 0:03:00.8]} 7... Nbd7 {[%clk 0:02:55.1]} 8. Qc2 {[%clk
0:02:59]} 8... O-O {[%clk 0:02:53.4]} 9. Nge2 {[%clk 0:02:58.6]} 9... Ne4 {[%clk
0:02:51.1]} 10. Bxe7 {[%clk 0:02:47.3]} 10... Qxe7 {[%clk 0:02:43.8]} 11. Bxe4
{[%clk 0:02:47.4]} 11... dxe4 {[%clk 0:02:42.5]} 12. Qxe4 {[%clk 0:02:43.1]}
12... Qb4 {[%clk 0:02:37]} 13. Qc2 {[%clk 0:02:38]} 13... Nf6 {[%clk 0:02:33.1]}
14. O-O {[%clk 0:02:36.1]} 14... Be6 {[%clk 0:02:30.3]} 15. Nf4 {[%clk
0:02:33.5]} 15... Bc4 {[%clk 0:02:27.3]} 16. Rfd1 {[%clk 0:02:27.8]} 16... Rfe8
{[%clk 0:02:25]} 17. b3 {[%clk 0:02:22.1]} 17... Ba6 {[%clk 0:02:21]} 18. Na4
{[%clk 0:02:10.9]} 18... Nd5 {[%clk 0:02:14.5]} 19. Nxd5 {[%clk 0:02:05.1]}
19... cxd5 {[%clk 0:02:14.2]} 20. Qc5 {[%clk 0:02:01.3]} 20... Qb5 {[%clk
0:02:02.8]} 21. Qxb5 {[%clk 0:01:51.6]} 21... Bxb5 {[%clk 0:01:57.9]} 22. Nc5
{[%clk 0:01:46.6]} 22... b6 {[%clk 0:01:54]} 23. Nd3 {[%clk 0:01:46.2]} 23...
Rac8 {[%clk 0:01:36.1]} 24. Nf4 {[%clk 0:01:43.5]} 24... Bc6 {[%clk 0:01:14.2]}
25. Rac1 {[%clk 0:01:42]} 25... Bb7 {[%clk 0:01:10.8]} 26. Kf1 {[%clk
0:01:35.5]} 26... f6 {[%clk 0:01:05.4]} 27. Ke2 {[%clk 0:01:31.7]} 27... Kf7
{[%clk 0:00:48.2]} 28. Kd2 {[%clk 0:01:31.1]} 28... g5 {[%clk 0:00:18.1]} 29.
Nd3 {[%clk 0:01:28.7]} 29... Ke6 {[%clk 0:00:17.2]} 30. Rxc8 {[%clk 0:01:21.8]}
30... Rxc8 {[%clk 0:00:16.1]} 31. Rc1 {[%clk 0:01:21.8]} 31... Rxc1 {[%clk
0:00:13.5]} 32. Nxc1 {[%clk 0:01:13.2]} 32... Ba6 {[%clk 0:00:14.4]} 33. Nd3
{[%clk 0:01:11.9]} 33... h5 {[%clk 0:00:13.1]} 34. g3 {[%clk 0:01:09.4]} 34...
h4 {[%clk 0:00:12.6]} 35. gxh4 {[%clk 0:01:06.9]} 35... gxh4 {[%clk 0:00:10.4]}
36. Nf4+ {[%clk 0:01:07]} 36... Kf5 {[%clk 0:00:09.6]} 37. Nxd5 {[%clk
0:01:03.4]} 37... Kg4 {[%clk 0:00:09.4]} 38. Nf4 {[%clk 0:01:02.5]} 38... Kf3
{[%clk 0:00:08.6]} 39. Ke1 {[%clk 0:01:00]} 39... Bc8 {[%clk 0:00:07.8]} 40. d5
{[%clk 0:00:48.1]} 40... Bd7 {[%clk 0:00:05.7]} 41. d6 {[%clk 0:00:47.9]} 41...
Ke4 {[%clk 0:00:04.9]} 42. Ng6 {[%clk 0:00:43.8]} 42... h3 {[%clk 0:00:03.8]}
43. Nf8 {[%clk 0:00:43.4]} 1-0

[Event "Late-Titled-Tuesday-Blitz-December-26-2023"]
[Site "Chess.com"]
[Date "2023.12.26"]
[Round "7"]
[White "Hikaru"]
[Black "yosephtaher"]
[Result "1-0"]
[WhiteElo "3225"]
[BlackElo "2932"]
[TimeControl "180+1"]
[EndTime "15:16:55 PST"]
[Termination "Hikaru won by resignation"]

1. Nf3 {[%clk 0:03:00.9]} 1... c5 {[%clk 0:02:53]} 2. e4 {[%clk 0:03:00.7]} 2...
g6 {[%clk 0:02:52.1]} 3. c3 {[%clk 0:02:58.5]} 3... Nf6 {[%clk 0:02:52.1]} 4. d3
{[%clk 0:02:54.4]} 4... Nc6 {[%clk 0:02:51.7]} 5. g3 {[%clk 0:02:54.8]} 5... Bg7
{[%clk 0:02:52.1]} 6. Bg2 {[%clk 0:02:55.1]} 6... O-O {[%clk 0:02:52.8]} 7. O-O
{[%clk 0:02:55.9]} 7... d6 {[%clk 0:02:53.5]} 8. Re1 {[%clk 0:02:56.3]} 8... Rb8
{[%clk 0:02:54.1]} 9. h3 {[%clk 0:02:56.5]} 9... b5 {[%clk 0:02:51.8]} 10. a3
{[%clk 0:02:56.7]} 10... e5 {[%clk 0:02:46]} 11. b4 {[%clk 0:02:56.3]} 11... a5
{[%clk 0:02:41]} 12. bxc5 {[%clk 0:02:48.4]} 12... dxc5 {[%clk 0:02:41.9]} 13.
Be3 {[%clk 0:02:48.4]} 13... Qd6 {[%clk 0:02:38]} 14. a4 {[%clk 0:02:41.6]}
14... b4 {[%clk 0:02:34.7]} 15. Nbd2 {[%clk 0:02:36.9]} 15... Qxd3 {[%clk
0:02:26.1]} 16. Bxc5 {[%clk 0:02:37.1]} 16... Rd8 {[%clk 0:02:25.8]} 17. cxb4
{[%clk 0:02:14.6]} 17... axb4 {[%clk 0:02:00.2]} 18. Bf1 {[%clk 0:02:11.4]}
18... Qd7 {[%clk 0:01:46.7]} 19. Qb3 {[%clk 0:02:05]} 19... Qb7 {[%clk
0:01:33.4]} 20. a5 {[%clk 0:02:03.8]} 20... Be6 {[%clk 0:01:16.3]} 21. Bc4
{[%clk 0:01:52.7]} 21... Nd7 {[%clk 0:01:14.2]} 22. Bd6 {[%clk 0:01:31.5]} 22...
Bxc4 {[%clk 0:01:07.2]} 23. Nxc4 {[%clk 0:01:30.3]} 23... Ra8 {[%clk 0:01:00.6]}
24. Red1 {[%clk 0:01:24.2]} 24... h6 {[%clk 0:00:59]} 25. h4 {[%clk 0:01:21.8]}
25... Nd4 {[%clk 0:00:49.5]} 26. Nxd4 {[%clk 0:01:19.4]} 26... exd4 {[%clk
0:00:50.4]} 27. Be7 {[%clk 0:01:10.5]} 27... Rdb8 {[%clk 0:00:43.6]} 28. Nd6
{[%clk 0:01:10]} 28... Qa7 {[%clk 0:00:29.4]} 29. Qxf7+ {[%clk 0:01:08.6]} 29...
Kh7 {[%clk 0:00:30.1]} 30. h5 {[%clk 0:01:04.1]} 30... Ne5 {[%clk 0:00:27.7]}
31. hxg6+ {[%clk 0:00:55.5]} 31... Nxg6 {[%clk 0:00:28.6]} 32. Nf5 {[%clk
0:00:55.7]} 32... Rg8 {[%clk 0:00:29.3]} 33. Rac1 {[%clk 0:00:35.3]} 33... Qd7
{[%clk 0:00:22.8]} 34. Rxd4 {[%clk 0:00:26.2]} 34... Qe8 {[%clk 0:00:22.9]} 35.
Qxe8 {[%clk 0:00:23.8]} 35... Raxe8 {[%clk 0:00:19.4]} 36. Nxg7 {[%clk
0:00:23.7]} 36... Rxe7 {[%clk 0:00:17.4]} 37. Nf5 {[%clk 0:00:23.8]} 37... Rb7
{[%clk 0:00:17.5]} 38. a6 {[%clk 0:00:24.4]} 38... Ra7 {[%clk 0:00:16.5]} 39.
Rxb4 {[%clk 0:00:24.4]} 1-0

[Event "Late-Titled-Tuesday-Blitz-December-26-2023"]
[Site "Chess.com"]
[Date "2023.12.26"]
[Round "7"]
[White "fugadelafuga"]
[Black "karinachess1"]
[Result "0-1"]
[WhiteElo "2435"]
[BlackElo "2561"]
[TimeControl "180+1"]
[EndTime "15:17:07 PST"]
[Termination "karinachess1 won by resignation"]

1. d4 {[%clk 0:02:41]} 1... Nf6 {[%clk 0:02:59.1]} 2. Bf4 {[%clk 0:02:33.9]}
2... e6 {[%clk 0:02:57.8]} 3. e3 {[%clk 0:02:33.3]} 3... b6 {[%clk 0:02:57.6]}
4. Nf3 {[%clk 0:02:28.1]} 4... Nh5 {[%clk 0:02:51.6]} 5. Bg5 {[%clk 0:02:27.2]}
5... Be7 {[%clk 0:02:51.7]} 6. Bxe7 {[%clk 0:02:26.4]} 6... Qxe7 {[%clk
0:02:52.6]} 7. Bd3 {[%clk 0:02:23.7]} 7... Bb7 {[%clk 0:02:52.4]} 8. Qe2 {[%clk
0:02:23.5]} 8... a6 {[%clk 0:02:51.3]} 9. c3 {[%clk 0:02:19.9]} 9... d6 {[%clk
0:02:51.7]} 10. Nbd2 {[%clk 0:02:19.9]} 10... Nd7 {[%clk 0:02:52]} 11. O-O
{[%clk 0:02:17.2]} 11... O-O {[%clk 0:02:44.9]} 12. Bc2 {[%clk 0:02:04.7]} 12...
Nhf6 {[%clk 0:02:42]} 13. e4 {[%clk 0:02:04.2]} 13... e5 {[%clk 0:02:42.5]} 14.
dxe5 {[%clk 0:02:01]} 14... dxe5 {[%clk 0:02:35]} 15. b4 {[%clk 0:01:53.2]}
15... a5 {[%clk 0:02:33.6]} 16. a3 {[%clk 0:01:52.8]} 16... Ba6 {[%clk
0:02:29.5]} 17. Bd3 {[%clk 0:01:50.3]} 17... Bb7 {[%clk 0:02:25]} 18. Nc4 {[%clk
0:01:46.9]} 18... axb4 {[%clk 0:02:21.6]} 19. axb4 {[%clk 0:01:46.2]} 19... Nh5
{[%clk 0:02:16.9]} 20. g3 {[%clk 0:01:45.4]} 20... Nhf6 {[%clk 0:02:14.1]} 21.
Nfd2 {[%clk 0:01:32.8]} 21... Rfe8 {[%clk 0:02:00.6]} 22. Ne3 {[%clk 0:01:30.6]}
22... g6 {[%clk 0:01:55.4]} 23. f3 {[%clk 0:01:27.8]} 23... Nf8 {[%clk
0:01:50.7]} 24. Bc4 {[%clk 0:01:18.1]} 24... Red8 {[%clk 0:01:50.4]} 25. Rfd1
{[%clk 0:01:03.3]} 25... Ne6 {[%clk 0:01:46.2]} 26. Ndf1 {[%clk 0:01:00.7]}
26... Kg7 {[%clk 0:01:33.8]} 27. Rxa8 {[%clk 0:00:58.6]} 27... Rxa8 {[%clk
0:01:28]} 28. Nd5 {[%clk 0:00:55.6]} 28... Bxd5 {[%clk 0:01:24]} 29. exd5 {[%clk
0:00:55.3]} 29... Nf8 {[%clk 0:01:23.4]} 30. Re1 {[%clk 0:00:53.2]} 30... N8d7
{[%clk 0:01:23.5]} 31. Nd2 {[%clk 0:00:52.6]} 31... Qd6 {[%clk 0:01:18.9]} 32.
Ne4 {[%clk 0:00:50.3]} 32... Nxe4 {[%clk 0:01:18.4]} 33. fxe4 {[%clk 0:00:51]}
33... Ra3 {[%clk 0:01:06.3]} 34. Qf3 {[%clk 0:00:48.2]} 34... Qxb4 {[%clk
0:00:57.9]} 35. Qxf7+ {[%clk 0:00:44.1]} 35... Kxf7 {[%clk 0:00:58.8]} 36. cxb4
{[%clk 0:00:44.4]} 36... Rc3 {[%clk 0:00:56.8]} 37. Bb5 {[%clk 0:00:35.5]} 37...
Nf6 {[%clk 0:00:55.8]} 38. Kf2 {[%clk 0:00:33.1]} 38... Rc2+ {[%clk 0:00:52.4]}
39. Kf3 {[%clk 0:00:26.5]} 39... Ke7 {[%clk 0:00:50.8]} 40. Re3 {[%clk
0:00:20.7]} 40... Rxh2 {[%clk 0:00:35]} 41. Rc3 {[%clk 0:00:20.5]} 41... Rf2+
{[%clk 0:00:35.3]} 42. Ke3 {[%clk 0:00:18.9]} 42... Ng4+ {[%clk 0:00:35.5]} 43.
Kd3 {[%clk 0:00:18.5]} 43... Rf3+ {[%clk 0:00:36]} 44. Kd2 {[%clk 0:00:18.1]}
44... Rxc3 {[%clk 0:00:36.2]} 45. Kxc3 {[%clk 0:00:17.8]} 45... Nf2 {[%clk
0:00:36.4]} 46. Bd3 {[%clk 0:00:17.3]} 46... Nxd3 {[%clk 0:00:36.4]} 47. Kxd3
{[%clk 0:00:18.2]} 47... h5 {[%clk 0:00:36.7]} 48. Ke3 {[%clk 0:00:18.7]} 48...
g5 {[%clk 0:00:36.9]} 49. Kf3 {[%clk 0:00:19]} 49... Kd6 {[%clk 0:00:37.3]} 50.
Kg2 {[%clk 0:00:18.8]} 50... c6 {[%clk 0:00:36.9]} 51. dxc6 {[%clk 0:00:18.6]}
51... Kxc6 {[%clk 0:00:37.8]} 52. Kf3 {[%clk 0:00:19.2]} 52... Kb5 {[%clk
0:00:38.2]} 53. g4 {[%clk 0:00:19.8]} 53... h4 {[%clk 0:00:37.9]} 0-1

[Event "Late-Titled-Tuesday-Blitz-December-26-2023"]
[Site "Chess.com"]
[Date "2023.12.26"]
[Round "7"]
[White "StellarChess"]
[Black "GothamChess"]
[Result "1-0"]
[WhiteElo "2551"]
[BlackElo "2673"]
[TimeControl "180+1"]
[EndTime "15:17:08 PST"]
[Termination "StellarChess won by resignation"]

1. b4 {[%clk 0:03:00.9]} 1... e6 {[%clk 0:02:48.9]} 2. a3 {[%clk 0:02:56.4]}
2... f5 {[%clk 0:02:48.9]} 3. Bb2 {[%clk 0:02:56.4]} 3... Nf6 {[%clk 0:02:48.7]}
4. Nf3 {[%clk 0:02:55.9]} 4... g6 {[%clk 0:02:48]} 5. g3 {[%clk 0:02:56]} 5...
Bg7 {[%clk 0:02:48.6]} 6. Bg2 {[%clk 0:02:56.3]} 6... O-O {[%clk 0:02:49.2]} 7.
d3 {[%clk 0:02:56.6]} 7... d6 {[%clk 0:02:44.3]} 8. Nbd2 {[%clk 0:02:56.1]} 8...
e5 {[%clk 0:02:44.7]} 9. e4 {[%clk 0:02:55.1]} 9... Nc6 {[%clk 0:02:40.3]} 10.
h3 {[%clk 0:02:53.8]} 10... h6 {[%clk 0:02:38.6]} 11. O-O {[%clk 0:02:52.9]}
11... Kh7 {[%clk 0:02:36.1]} 12. Qe2 {[%clk 0:02:51.7]} 12... g5 {[%clk
0:02:30.5]} 13. exf5 {[%clk 0:02:51.8]} 13... Bxf5 {[%clk 0:02:30.5]} 14. Ne4
{[%clk 0:02:47.3]} 14... Qd7 {[%clk 0:02:26.6]} 15. Nxf6+ {[%clk 0:02:46.9]}
15... Rxf6 {[%clk 0:02:21.8]} 16. g4 {[%clk 0:02:46.9]} 16... Bg6 {[%clk
0:02:14.9]} 17. Nd2 {[%clk 0:02:44.4]} 17... Rf4 {[%clk 0:02:07]} 18. Be4 {[%clk
0:02:31.3]} 18... Qe6 {[%clk 0:02:02.3]} 19. Bxg6+ {[%clk 0:02:31.7]} 19... Qxg6
{[%clk 0:02:01.3]} 20. Ne4 {[%clk 0:02:29.7]} 20... Raf8 {[%clk 0:02:00.4]} 21.
Kg2 {[%clk 0:02:20]} 21... d5 {[%clk 0:01:55.4]} 22. Ng3 {[%clk 0:02:18.3]}
22... Qf7 {[%clk 0:01:40.1]} 23. Nh5 {[%clk 0:02:12.4]} 23... Rf3 {[%clk
0:01:34.7]} 24. Nxg7 {[%clk 0:02:10.6]} 24... Qxg7 {[%clk 0:01:24.5]} 25. b5
{[%clk 0:02:02.3]} 25... Nd4 {[%clk 0:01:19]} 26. Bxd4 {[%clk 0:02:01.1]} 26...
exd4 {[%clk 0:01:19.9]} 27. Qxf3 {[%clk 0:01:57.6]} 27... Rxf3 {[%clk
0:01:19.2]} 28. Kxf3 {[%clk 0:01:58.5]} 28... Qd7 {[%clk 0:01:08.8]} 29. a4
{[%clk 0:01:49]} 29... h5 {[%clk 0:01:05.5]} 30. Rfe1 {[%clk 0:01:46.4]} 30...
Qd6 {[%clk 0:01:00.4]} 31. Kg2 {[%clk 0:01:43.3]} 31... Qf4 {[%clk 0:00:53.8]}
32. Re7+ {[%clk 0:01:39.8]} 32... Kg8 {[%clk 0:00:50.3]} 33. Rae1 {[%clk
0:01:37.2]} 33... hxg4 {[%clk 0:00:45.7]} 34. Re8+ {[%clk 0:01:36.4]} 34... Kg7
{[%clk 0:00:46.3]} 35. R1e7+ {[%clk 0:01:35.2]} 35... Kg6 {[%clk 0:00:41.1]} 36.
Re6+ {[%clk 0:01:27.8]} 36... Kf5 {[%clk 0:00:13.1]} 37. Rf8+ {[%clk 0:01:10.9]}
37... Kxe6 {[%clk 0:00:13.1]} 38. Rxf4 {[%clk 0:01:11.1]} 38... gxh3+ {[%clk
0:00:12.1]} 39. Kxh3 {[%clk 0:01:10.8]} 39... gxf4 {[%clk 0:00:12.7]} 40. Kg4
{[%clk 0:01:07.4]} 40... Ke5 {[%clk 0:00:09.4]} 41. f3 {[%clk 0:01:01.4]} 41...
b6 {[%clk 0:00:03.7]} 42. Kg5 {[%clk 0:01:00.5]} 42... c6 {[%clk 0:00:03.2]} 43.
bxc6 {[%clk 0:00:45.5]} 43... Kd6 {[%clk 0:00:02.8]} 44. Kxf4 {[%clk 0:00:46.4]}
44... a5 {[%clk 0:00:01.7]} 45. c7 {[%clk 0:00:44]} 45... Kxc7 {[%clk
0:00:01.7]} 46. Ke5 {[%clk 0:00:44.9]} 46... b5 {[%clk 0:00:02.4]} 47. axb5
{[%clk 0:00:43.5]} 47... a4 {[%clk 0:00:01.8]} 48. Kxd4 {[%clk 0:00:44.1]} 48...
Kb6 {[%clk 0:00:01.3]} 49. c4 {[%clk 0:00:37.5]} 49... dxc4 {[%clk 0:00:01.5]}
50. dxc4 {[%clk 0:00:37.6]} 1-0

[Event "Late-Titled-Tuesday-Blitz-December-26-2023"]
[Site "Chess.com"]
[Date "2023.12.26"]
[Round "7"]
[White "ozates"]
[Black "Petukhov_Dmitry"]
[Result "1-0"]
[WhiteElo "2616"]
[BlackElo "2469"]
[TimeControl "180+1"]
[EndTime "15:17:16 PST"]
[Termination "ozates won by checkmate"]

1. e4 {[%clk 0:03:00.9]} 1... c5 {[%clk 0:02:59.6]} 2. Nf3 {[%clk 0:02:56.6]}
2... d6 {[%clk 0:02:59.7]} 3. Bb5+ {[%clk 0:02:50.5]} 3... Nc6 {[%clk
0:02:58.8]} 4. O-O {[%clk 0:02:50]} 4... Bd7 {[%clk 0:02:58.6]} 5. Re1 {[%clk
0:02:49.7]} 5... a6 {[%clk 0:02:58.4]} 6. Bf1 {[%clk 0:02:50]} 6... e5 {[%clk
0:02:58.3]} 7. c3 {[%clk 0:02:49.9]} 7... Bg4 {[%clk 0:02:58.2]} 8. d3 {[%clk
0:02:42.8]} 8... Be7 {[%clk 0:02:57.4]} 9. Nbd2 {[%clk 0:02:43]} 9... g5 {[%clk
0:02:53.9]} 10. a4 {[%clk 0:02:41.3]} 10... h5 {[%clk 0:02:50.6]} 11. Qc2 {[%clk
0:02:29.1]} 11... h4 {[%clk 0:02:48.8]} 12. h3 {[%clk 0:02:27.9]} 12... Be6
{[%clk 0:02:48.4]} 13. Nh2 {[%clk 0:02:23.4]} 13... Nf6 {[%clk 0:02:45.2]} 14.
Be2 {[%clk 0:02:23.6]} 14... Qd7 {[%clk 0:02:39.7]} 15. Ndf1 {[%clk 0:02:22.6]}
15... g4 {[%clk 0:02:39]} 16. hxg4 {[%clk 0:02:18]} 16... Nxg4 {[%clk
0:02:39.1]} 17. Bxg4 {[%clk 0:02:14.5]} 17... Bxg4 {[%clk 0:02:40]} 18. Ne3
{[%clk 0:02:15.1]} 18... Be6 {[%clk 0:02:34.7]} 19. Nd5 {[%clk 0:02:15.3]} 19...
Bd8 {[%clk 0:02:16.2]} 20. f4 {[%clk 0:01:36.7]} 20... Rg8 {[%clk 0:02:12.1]}
21. Qf2 {[%clk 0:01:21.1]} 21... Bh3 {[%clk 0:02:02.2]} 22. Re2 {[%clk
0:00:47.5]} 22... exf4 {[%clk 0:01:20.9]} 23. Nxf4 {[%clk 0:00:41.1]} 23... Ne5
{[%clk 0:01:21]} 24. d4 {[%clk 0:00:28.6]} 24... Ng4 {[%clk 0:01:20.7]} 25. Nxg4
{[%clk 0:00:27.1]} 25... Bxg4 {[%clk 0:01:21.6]} 26. Re3 {[%clk 0:00:23.9]}
26... cxd4 {[%clk 0:01:18.4]} 27. cxd4 {[%clk 0:00:22.5]} 27... Bb6 {[%clk
0:01:18.7]} 28. Rb3 {[%clk 0:00:17.9]} 28... Ba7 {[%clk 0:01:11]} 29. Nd5 {[%clk
0:00:18.1]} 29... O-O-O {[%clk 0:01:10.3]} 30. Bf4 {[%clk 0:00:14]} 30... Kb8
{[%clk 0:01:07.9]} 31. e5 {[%clk 0:00:11.6]} 31... Bh3 {[%clk 0:01:04.9]} 32.
Rxh3 {[%clk 0:00:06.3]} 32... Qxh3 {[%clk 0:01:04.6]} 33. exd6 {[%clk
0:00:06.9]} 33... Bxd4 {[%clk 0:01:00.9]} 34. d7+ {[%clk 0:00:04.9]} 34... Ka8
{[%clk 0:01:01.3]} 35. Nc7+ {[%clk 0:00:04.1]} 35... Kb8 {[%clk 0:01:01.6]} 36.
Nb5+ {[%clk 0:00:03.3]} 36... Ka8 {[%clk 0:01:01.4]} 37. Nc7+ {[%clk 0:00:03.8]}
37... Kb8 {[%clk 0:01:01.5]} 38. Nxa6+ {[%clk 0:00:04.2]} 38... Ka8 {[%clk
0:01:01]} 39. Nc7+ {[%clk 0:00:04.6]} 39... Kb8 {[%clk 0:01:00.6]} 40. Nb5+
{[%clk 0:00:03.9]} 40... Ka8 {[%clk 0:01:00.8]} 41. Nxd4 {[%clk 0:00:02.5]}
41... Rxd7 {[%clk 0:00:59.3]} 42. Nb5 {[%clk 0:00:02.9]} 42... b6 {[%clk
0:00:56.3]} 43. a5 {[%clk 0:00:03.3]} 43... Kb7 {[%clk 0:00:48.4]} 44. Qxb6+
{[%clk 0:00:02.7]} 44... Kc8 {[%clk 0:00:48.7]} 45. Qc6+ {[%clk 0:00:02.7]}
45... Kd8 {[%clk 0:00:48.6]} 46. Qa8+ {[%clk 0:00:03.2]} 46... Ke7 {[%clk
0:00:48.3]} 47. Qxg8 {[%clk 0:00:03.7]} 47... Qf5 {[%clk 0:00:46.8]} 48. Re1+
{[%clk 0:00:04.2]} 48... Kf6 {[%clk 0:00:45.8]} 49. Qh8+ {[%clk 0:00:04.7]}
49... Kg6 {[%clk 0:00:45.7]} 50. Qh6# {[%clk 0:00:05.1]} 1-0